bitfinex/quotes_BTCUSD_20260125
["timestamp","ask_amount","ask_price","bid_price","bid_amount"]
[1769311667571,0.14211392,89036.0,89023.0,0.37642789]
[1769311667771,0.03,89034.0,89024.0,0.01105529]
[1769311668158,0.03,89034.0,89024.0,0.01035176]
[1769311668898,0.00211047,89035.0,89024.0,0.01035176]
[1769311670221,0.00211047,89035.0,89024.0,0.01001659]
[1769311670485,0.00455824,89035.0,89024.0,0.00649534]
[1769311670684,0.03,89034.0,89023.0,0.37361449]
[1769311671850,0.03,89035.0,89023.0,0.37361449]
[1769311671995,0.03,89033.0,89023.0,0.37361449]
[1769311673181,0.03,89032.0,89023.0,0.37361449]
[1769311673564,0.03,89032.0,89023.0,0.36867893]
[1769311673743,0.03,89032.0,89023.0,0.36303589]
[1769311673955,0.03,89032.0,89023.0,0.3586195]
[1769311674167,0.03,89035.0,89023.0,0.35650158]
[1769311674408,0.03,89033.0,89023.0,0.35650158]
[1769311675319,0.03,89032.0,89023.0,0.35650158]
[1769311676577,0.03,89035.0,89023.0,0.35650158]
[1769311676700,0.03,89033.0,89023.0,0.35650158]
[1769311676935,0.03,89033.0,89023.0,0.35438328]
[1769311677127,0.03,89033.0,89023.0,0.34943915]
[1769311677464,0.03,89033.0,89023.0,0.34307945]
[1769311677665,0.03,89037.0,89023.0,0.33813072]
[1769311677998,0.03,89035.0,89023.0,0.32964248]
[1769311678205,0.03,89033.0,89023.0,0.32468827]
[1769311678410,0.03,89033.0,89023.0,0.32256442]
[1769311680577,0.03,89037.0,89023.0,0.31831559]
[1769311680801,0.03,89037.0,89023.0,0.31264818]
[1769311680976,0.03,89037.0,89023.0,0.30768705]
[1769311681124,0.03,89035.0,89023.0,0.30343304]
[1769311681322,0.03,89033.0,89023.0,0.30130547]
[1769311681522,0.03,89031.0,89023.0,0.29975266]
[1769311681717,0.03,89031.0,89023.0,0.29888872]
[1769311681923,0.03,89031.0,89023.0,0.29874321]
[1769311682529,0.14211392,89034.0,89023.0,0.29874321]
[1769311682729,0.03,89032.0,89023.0,0.29874321]
[1769311682966,0.14211392,89032.0,89023.0,0.29874321]
[1769311683229,0.03,89030.0,89023.0,0.29874321]
[1769311684363,0.03,89034.0,89023.0,0.29874321]
[1769311684539,0.03,89032.0,89023.0,0.29874321]
[1769311685645,0.03,89034.0,89023.0,0.29874321]
[1769311685854,0.03,89032.0,89023.0,0.29874321]
[1769311686082,0.03,89032.0,89023.0,0.29448648]
[1769311686206,0.03,89032.0,89023.0,0.29022939]
[1769311686404,0.03,89030.0,89015.0,0.00047921]
[1769311686601,0.03,89030.0,89015.0,0.3947791]
[1769311687259,0.03,89030.0,89015.0,1.27845434]
[1769311687400,0.03,89029.0,89015.0,1.27845434]
[1769311688445,0.03,89028.0,89015.0,1.27845434]
[1769311689460,0.03,89028.0,89015.0,0.88415445]
[1769311689661,0.03,89027.0,89016.0,0.39429989]
[1769311689875,0.03,89027.0,89016.0,1.27797513]
[1769311690689,0.03,89031.0,89016.0,1.27797513]
[1769311690898,0.03,89031.0,89017.0,0.39429989]
[1769311691078,0.03,89031.0,89017.0,1.27797513]
[1769311691283,0.14211392,89031.0,89017.0,1.27797513]
[1769311691802,0.15334596,89031.0,89017.0,1.27797513]
[1769311691982,0.03,89029.0,89017.0,1.27797513]
[1769311692561,0.04123229,89029.0,89017.0,1.27797513]
[1769311692766,0.03,89029.0,89017.0,1.27797513]
[1769311692966,0.03,89026.0,89015.0,0.00047921]
[1769311693227,0.14211392,89026.0,89015.0,0.00047921]
[1769311694506,0.15334659,89026.0,89015.0,0.00047921]
[1769311695113,0.03,89024.0,89015.0,0.00047921]
[1769311696096,0.03,89025.0,89015.0,0.00047921]
[1769311699847,0.04123279,89025.0,89015.0,0.00047921]
[1769311700147,0.14211392,89025.0,89015.0,0.00047921]
[1769311700351,0.03,89023.0,89015.0,0.00047921]
[1769311700532,0.14211392,89023.0,89015.0,0.00047921]
[1769311700736,0.03,89021.0,89015.0,0.00047921]
[1769311701799,0.03,89023.0,89015.0,0.00047921]
[1769311705342,0.03,89022.0,89015.0,0.00047921]
[1769311706511,0.03,89021.0,89015.0,0.00047921]
[1769311707451,0.03,89026.0,89015.0,0.00047921]
[1769311708535,0.03,89025.0,89015.0,0.00047921]
[1769311709680,0.03,89024.0,89015.0,0.00047921]
[1769311710503,0.03,89026.0,89015.0,0.00047921]
[1769311711922,0.03,89025.0,89015.0,0.00047921]
[1769311712477,0.03,89023.0,89015.0,0.00047921]
[1769311712609,0.03,89017.0,89006.0,0.00015]
[1769311712815,0.03,89017.0,89006.0,0.00020873]
[1769311713561,0.03,89019.0,89006.0,0.00020873]
[1769311713911,0.04123355,89019.0,89006.0,0.00020873]
[1769311714110,0.15333795,89019.0,89006.0,0.00020873]
[1769311714312,0.03,89017.0,89006.0,0.00020873]
[1769311714767,0.03,89015.0,89006.0,0.00020873]
[1769311719981,0.03,89017.0,89006.0,0.00020873]
[1769311720908,0.03,89016.0,89006.0,0.00020873]
[1769311722080,0.03,89015.0,89006.0,0.00020873]
[1769311723099,0.03,89014.0,89006.0,0.00020873]
[1769311724101,0.03,89018.0,89006.0,0.00020873]
[1769311724510,0.14209061,89018.0,89006.0,0.00020873]
[1769311724715,0.03,89018.0,89006.0,0.00020873]
[1769311726342,0.03,89017.0,89006.0,0.00020873]
[1769311728077,0.14208499,89017.0,89006.0,0.00020873]
[1769311728394,0.0112333,89021.0,89006.0,0.00020873]
[1769311728395,0.03,89019.0,89006.0,0.00020873]
[1769311728593,0.03,89017.0,89006.0,0.00020873]
[1769311729538,0.03,89016.0,89006.0,0.38404705]
[1769311729994,0.03,89016.0,89007.0,0.38383832]
[1769311730650,0.15491623,89018.0,89007.0,0.38383832]
[1769311730855,0.03,89016.0,89007.0,0.38383832]
[1769311732302,0.03,89015.0,89007.0,0.38383832]
[1769311733682,0.03,89018.0,89007.0,0.38383832]
[1769311734494,0.1420827,89018.0,89007.0,0.38383832]
[1769311734690,0.03,89016.0,89007.0,0.38383832]
[1769311735775,0.03,89018.0,89007.0,0.38383832]
[1769311736937,0.03,89017.0,89007.0,0.38383832]
[1769311737848,0.03,89018.0,89007.0,0.38383832]
[1769311738002,0.03,89016.0,89007.0,0.38383832]
[1769311739244,0.03,89015.0,89007.0,0.38383832]
[1769311739647,0.23236934,89022.0,89007.0,0.38383832]
[1769311739917,0.01123343,89020.0,89007.0,0.38383832]
[1769311740434,0.03,89019.0,89007.0,0.38383832]
[1769311740646,0.03,89017.0,89007.0,0.38383832]
[1769311741754,0.03,89016.0,89007.0,0.38383832]
[1769311742790,0.03,89015.0,89007.0,0.38383832]
[1769311743895,0.03,89014.0,89007.0,0.38383832]
[1769311745124,0.03,89013.0,89007.0,0.38383832]
[1769311746156,0.03,89021.0,89007.0,0.38383832]
[1769311746588,0.0412333,89021.0,89007.0,0.38383832]
[1769311746947,0.37366572,89023.0,89007.0,0.38383832]
[1769311747359,0.05616598,89022.0,89007.0,0.38383832]
[1769311747561,0.0112333,89021.0,89007.0,0.38383832]
[1769311747765,0.01123317,89022.0,89007.0,0.38383832]
[1769311747989,0.0112333,89021.0,89007.0,0.38383832]
[1769311748194,0.03,89020.0,89007.0,0.38383832]
[1769311749092,0.03,89019.0,89007.0,0.38383832]
[1769311749305,0.03,89019.0,89009.0,0.35817493]
[1769311750114,0.03,89018.0,89009.0,0.35817493]
[1769311750317,0.03,89018.0,89009.0,0.84057537]
[1769311750530,0.03,89018.0,89010.0,0.35817493]
[1769311751124,0.03,89017.0,89010.0,0.35817493]
[1769311752136,0.03,89022.0,89010.0,0.35817493]
[1769311754834,0.04123317,89022.0,89010.0,0.35817493]
[1769311755044,0.14214496,89022.0,89010.0,0.35817493]
[1769311755334,0.03,89020.0,89010.0,0.35817493]
[1769311755545,0.14214496,89020.0,89010.0,0.35817493]
[1769311755679,0.03,89020.0,89010.0,0.35817493]
[1769311756506,0.03,89022.0,89010.0,0.35817493]
[1769311757224,0.03,89022.0,89006.0,0.00020873]
[1769311757423,0.03,89022.0,89006.0,0.01126982]
[1769311757757,0.00714367,89025.0,89006.0,0.01126982]
[1769311757973,0.03,89024.0,89006.0,0.01126982]
[1769311758416,0.03,89024.0,89007.0,0.36978809]
[1769311758650,0.03,89024.0,89008.0,0.38085944]
[1769311758864,0.03,89024.0,89008.0,0.36978809]
[1769311759677,0.03,89024.0,89006.0,0.00020873]
[1769311759678,0.03,89024.0,89009.0,1.21296121]
[1769311759817,0.03,89024.0,89010.0,0.00821902]
[1769311760022,0.3611394,89025.0,89010.0,0.37800711]
[1769311760023,0.03,89023.0,89010.0,0.37800711]
[1769311760223,0.03,89023.0,89010.0,0.36978809]
[1769311760441,0.03,89023.0,89011.0,0.00821892]
[1769311761065,0.03170748,89025.0,89011.0,0.00821892]
[1769311761266,0.03170748,89025.0,89011.0,0.37800701]
[1769311761470,0.03170748,89025.0,89011.0,0.36978809]
[1769311764201,0.03,89025.0,89011.0,0.36978809]
[1769311765222,0.03,89025.0,89011.0,0.84317312]
[1769311765437,0.03,89028.0,89013.0,0.36978809]
[1769311765641,0.06,89028.0,89013.0,0.36553037]
[1769311765883,0.06,89028.0,89013.0,0.36269149]
[1769311766124,0.06170748,89028.0,89013.0,0.35985229]
[1769311766319,0.0729399,89028.0,89013.0,0.35946292]
[1769311766531,0.0729399,89028.0,89013.0,0.35517896]
[1769311766763,0.06170748,89028.0,89013.0,0.35160852]
[1769311767036,0.0729399,89028.0,89013.0,0.3451806]
[1769311767245,0.00170748,89027.0,89011.0,0.84317312]
[1769311767440,0.00170748,89027.0,89012.0,0.00813872]
[1769311767621,0.03,89026.0,89012.0,0.00813872]
[1769311768325,0.01123254,89027.0,89012.0,0.00813872]
[1769311768491,0.21696928,89028.0,89012.0,0.00813872]
[1769311768695,0.16446056,89027.0,89012.0,0.00813872]
[1769311769110,0.1756931,89027.0,89012.0,0.00813872]
[1769311769358,0.1756931,89027.0,89012.0,0.00770939]
[1769311769359,0.00042933,89026.0,89012.0,0.00770939]
[1769311769586,0.00328735,89026.0,89012.0,0.00413684]
[1769311769788,0.03,89025.0,89011.0,0.84317312]
[1769311769992,0.03,89025.0,89012.0,0.00129441]
[1769311770395,0.03,89025.0,89010.0,0.36978809]
[1769311770547,0.03,89025.0,89011.0,0.00129443]
[1769311773047,0.03,89023.0,89011.0,0.00129443]
[1769311773188,0.14214425,89023.0,89011.0,0.00129443]
[1769311773612,0.03,89021.0,89011.0,0.00129443]
[1769311774039,0.14214425,89021.0,89011.0,0.00129443]
[1769311774230,0.06370777,89021.0,89011.0,0.00129443]
[1769311774743,0.06370777,89021.0,89009.0,0.82169612]
[1769311774920,0.06370777,89021.0,89010.0,0.35151839]
[1769311774921,0.03,89019.0,89010.0,0.35151839]
[1769311775136,0.03,89019.0,89011.0,0.00129441]
[1769311775466,0.03,89019.0,89011.0,0.35022395]
[1769311775676,0.03,89019.0,89012.0,0.00129438]
[1769311776425,0.00686009,89018.0,89006.0,0.00020873]
[1769311776637,0.03,89017.0,89006.0,0.35043268]
[1769311776834,0.00686009,89016.0,89006.0,0.35043268]
[1769311777091,0.03,89015.0,89006.0,0.35043268]
[1769311777877,0.142145,89015.0,89006.0,0.35043268]
[1769311778061,0.03,89014.0,89006.0,0.35043268]
[1769311779127,0.03686009,89017.0,89006.0,0.35043268]
[1769311779326,0.14899618,89017.0,89006.0,0.35043268]
[1769311779534,0.03,89015.0,89006.0,0.35043268]
[1769311779710,0.03686009,89015.0,89006.0,0.35043268]
[1769311779910,0.03,89015.0,89006.0,0.35043268]
[1769311780691,0.03686009,89018.0,89006.0,0.35043268]
[1769311780860,0.14899618,89018.0,89006.0,0.35043268]
[1769311781063,0.03,89016.0,89006.0,0.35043268]
[1769311781318,0.00686009,89015.0,89006.0,0.35043268]
[1769311781493,0.03,89014.0,89006.0,0.35043268]
[1769311782644,0.03,89013.0,89006.0,0.35043268]
[1769311783605,0.03,89012.0,89006.0,0.35043268]
[1769311784644,0.03,89015.0,89006.0,0.35043268]
[1769311788713,0.03,89015.0,89006.0,0.00020873]
[1769311793235,0.00686009,89014.0,89006.0,0.00020873]
[1769311794629,0.03,89013.0,89006.0,0.00020873]
[1769311801098,0.03,89012.0,89006.0,0.00020873]
[1769311802205,0.03,89011.0,89006.0,0.00020873]
[1769311803261,0.06371239,89010.0,89006.0,0.00020873]
[1769311803624,0.03,89008.0,89006.0,0.00020873]
[1769311803833,0.03,89008.0,88988.0,0.00015]
[1769311803834,0.05618404,88994.0,88979.0,0.00015]
[1769311804181,0.05618404,88994.0,88970.0,0.00015]
[1769311804182,0.03,88980.0,88970.0,0.00015]
[1769311804403,0.23884564,88986.0,88963.0,0.80618277]
[1769311804404,0.03,88978.0,88963.0,0.80618277]
[1769311804566,0.03,88978.0,88966.0,0.33392571]
[1769311804774,0.03,88978.0,88961.0,0.000237]
[1769311804775,0.03,88978.0,88968.0,0.33392571]
[1769311804921,0.03,88976.0,88968.0,0.33392571]
[1769311805120,0.05618984,88985.0,88968.0,0.33392571]
[1769311805121,0.01123784,88985.0,88976.0,0.01]
[1769311805321,0.04496167,88982.0,88976.0,0.01]
[1769311805579,0.03372345,88982.0,88968.0,0.33392571]
[1769311806053,0.03,88981.0,88968.0,0.33392571]
[1769311808339,0.04123835,88981.0,88968.0,0.33392571]
[1769311808666,0.03,88981.0,88968.0,0.33392571]
[1769311808967,0.03,88977.0,88968.0,0.33392571]
[1769311809136,0.00893426,88975.0,88961.0,0.000237]
[1769311809331,0.03,88972.0,88961.0,0.33416271]
[1769311809555,0.00893426,88975.0,88961.0,0.000237]
[1769311809755,0.01123898,88976.0,88961.0,0.000237]
[1769311809965,0.01123885,88977.0,88961.0,0.000237]
[1769311810161,0.01123873,88978.0,88961.0,0.000237]
[1769311810381,0.03,88977.0,88961.0,0.33416271]
[1769311810990,0.03466402,88977.0,88961.0,0.33416271]
[1769311811375,0.03,88976.0,88961.0,0.33416271]
[1769311811946,0.03,88976.0,88962.0,0.80618277]
[1769311812163,0.03,88976.0,88964.0,0.80618277]
[1769311812394,0.03,88981.0,88965.0,0.33392571]
[1769311812591,0.03,88981.0,88966.0,0.82789234]
[1769311812753,0.03,88981.0,88967.0,1.19225662]
[1769311813166,0.00466402,88980.0,88962.0,0.36436428]
[1769311813678,0.00466402,88980.0,88963.0,0.36436428]
[1769311814459,0.03686009,88979.0,88963.0,0.36436428]
[1769311815092,0.03,88977.0,88963.0,0.36436428]
[1769311815289,0.00686009,88976.0,88963.0,0.36436428]
[1769311815707,0.03,88974.0,88963.0,0.36436428]
[1769311815907,0.03686009,88974.0,88963.0,0.36436428]
[1769311816439,0.03,88972.0,88963.0,0.36436428]
[1769311816635,0.03,88972.0,88961.0,0.000237]
[1769311816838,0.00686009,88971.0,88961.0,0.000237]
[1769311817019,0.03372956,88971.0,88961.0,0.000237]
[1769311817221,0.03,88970.0,88961.0,0.000237]
[1769311817618,0.03,88970.0,88961.0,0.36460128]
[1769311818007,0.00449727,88969.0,88961.0,0.36460128]
[1769311819288,0.00449727,88969.0,88955.0,0.00024971]
[1769311819460,0.03,88959.0,88955.0,0.00024971]
[1769311819608,0.03004664,88959.0,88955.0,0.00024971]
[1769311820110,0.0112405,88964.0,88955.0,0.00024971]
[1769311820111,0.03,88957.0,88955.0,0.00024971]
[1769311820510,0.06185123,88969.0,88957.0,0.01]
[1769311820710,0.03004664,88960.0,88957.0,0.00047564]
[1769311821070,0.03004664,88960.0,88958.0,0.36436428]
[1769311821220,0.03,88959.0,88958.0,0.36436428]
[1769311821887,0.03,88959.0,88957.0,0.00047564]
[1769311822114,0.03,88960.0,88957.0,0.00047564]
[1769311822320,4.664e-05,88959.0,88955.0,0.00024971]
[1769311822465,0.00052174,88959.0,88955.0,0.00024971]
[1769311822662,0.0004751,88959.0,88955.0,0.00024971]
[1769311823403,0.03,88957.0,88955.0,0.00024971]
[1769311824164,0.03,88956.0,88955.0,0.00024971]
[1769311824554,0.03,88956.0,88954.0,0.0018284]
[1769311824555,0.03,88956.0,88933.0,0.0002319]
[1769311824752,0.03,88954.0,88933.0,0.0002319]
[1769311824979,0.13446056,88955.0,88933.0,0.36459618]
[1769311824980,0.03,88952.0,88933.0,0.36459618]
[1769311825528,0.03,88950.0,88934.0,0.36436428]
[1769311827467,0.03,88950.0,88934.0,0.34656428]
[1769311827671,0.03,88950.0,88933.0,0.0002319]
[1769311827672,0.03,88944.0,88933.0,0.0002319]
[1769311827945,0.03,88942.0,88933.0,0.0002319]
[1769311829591,0.03,88942.0,88933.0,0.36459618]
[1769311829791,0.03,88941.0,88933.0,0.36459618]
[1769311830034,0.06374185,88941.0,88933.0,0.36459618]
[1769311830237,0.01388803,88948.0,88933.0,0.36459618]
[1769311830641,0.03373866,88950.0,88933.0,0.36459618]
[1769311830854,0.03,88949.0,88935.0,0.36436428]
[1769311831061,0.03,88949.0,88939.0,0.36436428]
[1769311831322,0.03,88949.0,88941.0,0.36436428]
[1769311831323,0.14145082,88949.0,88941.0,0.36436428]
[1769311831522,0.06373821,88949.0,88941.0,0.36436428]
[1769311831823,0.06373821,88949.0,88942.0,0.82767337]
[1769311832025,0.06373821,88949.0,88943.0,0.36348814]
[1769311832227,0.03,88947.0,88934.0,0.36436428]
[1769311832425,0.03,88945.0,88934.0,0.36436428]
[1769311832626,0.16446056,88945.0,88934.0,0.36436428]
[1769311832886,0.04124328,88942.0,88933.0,0.0002319]
[1769311833114,0.03,88940.0,88933.0,0.0002319]
[1769311833320,0.03,88940.0,88929.0,0.02]
[1769311834041,0.03,88939.0,88929.0,0.02]
[1769311834241,0.03,88935.0,88929.0,0.02]
[1769311835104,0.03,88935.0,88929.0,0.0024]
[1769311835302,0.03,88934.0,88929.0,0.0024]
[1769311835496,0.03,88934.0,88929.0,0.3332098]
[1769311836110,0.03,88934.0,88929.0,0.0024]
[1769311836351,0.03,88940.0,88929.0,0.0024]
[1769311836552,0.14159301,88940.0,88929.0,0.0024]
[1769311836756,0.03,88938.0,88929.0,0.0024]
[1769311837794,0.03,88939.0,88929.0,0.0024]
[1769311838995,0.03,88938.0,88929.0,0.3332098]
[1769311839694,0.03,88938.0,88929.0,0.0024]
[1769311839893,0.03,88937.0,88929.0,0.0024]
[1769311840121,0.03,88937.0,88929.0,0.3332098]
[1769311840444,0.14157627,88937.0,88929.0,0.3332098]
[1769311840662,0.03,88937.0,88929.0,0.3332098]
[1769311840897,0.03,88936.0,88929.0,0.3332098]
[1769311841102,0.03,88936.0,88929.0,0.0024]
[1769311842018,0.03,88935.0,88929.0,0.0024]
[1769311842955,0.14157719,88935.0,88929.0,0.0024]
[1769311843104,0.14157719,88934.0,88929.0,0.3332098]
[1769311843315,0.03,88932.0,88929.0,0.3332098]
[1769311844299,0.03,88931.0,88929.0,0.3332098]
[1769311844432,0.0304751,88931.0,88929.0,0.3332098]
[1769311844645,0.0304751,88931.0,88930.0,0.3308098]
[1769311845067,0.20070402,88941.0,88930.0,0.3308098]
[1769311845269,0.11159633,88940.0,88930.0,0.33095238]
[1769311845429,0.08910769,88941.0,88930.0,0.33095238]
[1769311845430,0.03,88938.0,88930.0,0.33095238]
[1769311845630,0.14159633,88938.0,88930.0,0.33095238]
[1769311845833,0.03,88936.0,88930.0,0.33095238]
[1769311846782,0.11159633,88939.0,88930.0,0.33095238]
[1769311846783,0.03,88937.0,88930.0,0.00014258]
[1769311847648,0.01124328,88942.0,88928.0,0.0455385]
[1769311847649,0.03,88935.0,88928.0,0.03397972]
[1769311847868,0.03,88923.0,88900.0,0.00850069]
[1769311848048,0.03,88923.0,88897.0,0.02]
[1769311848049,0.03,88901.0,88897.0,0.01545129]
[1769311848251,0.00570009,88903.0,88897.0,0.01060448]
[1769311848452,0.07211271,88900.0,88897.0,0.00508484]
[1769311848651,0.07211271,88900.0,88890.0,0.1]
[1769311848652,0.00610607,88893.0,88890.0,0.1]
[1769311848852,0.06097163,88893.0,88890.0,0.0966608]
[1769311849151,0.06111394,88893.0,88890.0,0.03408664]
[1769311849416,0.08933501,88903.0,88890.0,0.03408664]
[1769311849607,0.01124745,88909.0,88891.0,0.338125]
[1769311849608,0.08933501,88909.0,88891.0,0.338125]
[1769311849812,0.03,88908.0,88894.0,0.01124935]
[1769311850007,0.03,88908.0,88893.0,0.338125]
[1769311850008,0.03,88908.0,88898.0,0.338125]
[1769311850331,0.03,88908.0,88890.0,0.31411638]
[1769311850332,0.03,88897.0,88882.0,0.332125]
[1769311850490,0.03425847,88897.0,88882.0,0.332125]
[1769311850698,0.01124783,88906.0,88882.0,0.332125]
[1769311850899,0.05624178,88902.0,88882.0,1.12742152]
[1769311851118,0.00170677,88893.0,88882.0,0.00047598]
[1769311851358,0.03,88891.0,88882.0,0.00047598]
[1769311851535,0.00170677,88890.0,88882.0,0.00047598]
[1769311851865,0.1457094,88898.0,88868.0,0.33287702]
[1769311851866,0.00077408,88881.0,88868.0,0.33287702]
[1769311852151,0.03,88879.0,88868.0,0.33287702]
[1769311852318,0.01125061,88884.0,88868.0,0.33287702]
[1769311852524,0.01125036,88886.0,88868.0,0.3333527]
[1769311852728,0.061109,88887.0,88868.0,0.3333527]
[1769311852934,0.01125061,88884.0,88868.0,0.3333527]
[1769311853138,0.01125099,88881.0,88868.0,0.3333527]
[1769311853354,0.04125163,88876.0,88868.0,0.00047568]
[1769311853552,0.04125201,88873.0,88858.0,0.33697653]
[1769311853752,0.03047568,88873.0,88858.0,0.33697653]
[1769311854070,0.03047568,88873.0,88860.0,0.33697653]
[1769311854270,0.03047568,88873.0,88840.0,0.045]
[1769311854271,0.13446056,88878.0,88873.0,0.00029839]
[1769311854481,0.03,88880.0,88873.0,0.00014231]
[1769311854666,0.03,88877.0,88873.0,0.00014231]
[1769311854856,0.03,88875.0,88854.0,0.01125441]
[1769311855031,0.03,88875.0,88830.0,0.79922639]
[1769311855032,0.03,88873.0,88850.0,0.33472863]
[1769311855232,0.03,88869.0,88850.0,0.33472863]
[1769311855685,0.06111103,88871.0,88850.0,0.30872863]
[1769311855686,0.04125277,88867.0,88850.0,0.30872863]
[1769311855860,0.03,88861.0,88850.0,0.30872863]
[1769311856221,0.03,88861.0,88837.0,0.01125657]
[1769311856222,0.01125429,88855.0,88837.0,0.3308098]
[1769311856422,0.13446056,88862.0,88841.0,0.3308098]
[1769311856629,0.020736,88881.0,88836.0,0.0001]
[1769311856630,0.07559877,88871.0,88846.0,0.79406852]
[1769311856836,0.13446056,88861.0,88849.0,0.3308098]
[1769311857273,0.13446056,88861.0,88837.0,0.3308098]
[1769311857274,0.04125403,88857.0,88837.0,0.3308098]
[1769311857496,0.01125391,88858.0,88837.0,0.79406852]
[1769311857497,0.04125441,88854.0,88837.0,0.79406852]
[1769311857699,0.21005933,88861.0,88836.0,0.0001]
[1769311857700,0.01144937,88845.0,88836.0,0.0001]
[1769311857936,0.00223758,88845.0,88826.0,0.3308098]
[1769311858158,0.00012279,88843.0,88832.0,0.00029418]
[1769311858322,0.07559877,88847.0,88832.0,0.00029418]
[1769311858570,0.020736,88869.0,88848.0,0.79406852]
[1769311858778,0.13446056,88865.0,88850.0,1.12487832]
[1769311859108,0.0001426,88869.0,88853.0,0.01125454]
[1769311859311,0.0001426,88869.0,88856.0,0.3308098]
[1769311860127,0.13446056,88866.0,88856.0,0.3308098]
[1769311860306,0.12830692,88866.0,88849.0,0.79406852]
[1769311860508,0.12830692,88866.0,88849.0,1.12487832]
[1769311860713,0.12830692,88866.0,88849.0,0.79406852]
[1769311860714,0.00858443,88866.0,88849.0,0.79406852]
[1769311860917,0.00858443,88866.0,88847.0,0.0112553]
[1769311860918,0.0001426,88869.0,88853.0,0.79406852]
[1769311861118,0.0001426,88869.0,88844.0,0.01125568]
[1769311861119,0.13446056,88866.0,88856.0,0.3308098]
[1769311861505,0.0001426,88869.0,88856.0,0.3308098]
[1769311861879,0.22500766,88886.0,88842.0,0.05627965]
[1769311861880,0.13446056,88895.0,88874.0,0.79406852]
[1769311862173,0.13446056,88895.0,88877.0,0.3308098]
[1769311862174,0.11077056,88894.0,88877.0,0.3308098]
[1769311862393,0.02932043,88893.0,88877.0,0.3308098]
[1769311862598,0.01983403,88892.0,88877.0,0.3308098]
[1769311862800,0.01983403,88892.0,88863.0,0.7801938]
[1769311862801,0.13446056,88881.0,88863.0,0.7801938]
[1769311863010,0.13446056,88881.0,88866.0,0.34245285]
[1769311863185,0.01405351,88872.0,88849.0,0.34245285]
[1769311863379,0.01405351,88865.0,88849.0,0.34245285]
[1769311863575,0.13446056,88867.0,88849.0,0.34245285]
[1769311863782,0.13243739,88867.0,88849.0,0.34245285]
[1769311863946,0.13243739,88867.0,88850.0,0.34245285]
[1769311864147,0.01125201,88873.0,88844.0,0.01125568]
[1769311864406,0.13335056,88867.0,88847.0,0.34360141]
[1769311864640,0.13335056,88867.0,88849.0,0.34360141]
[1769311864840,0.020736,88881.0,88870.0,0.34245285]
[1769311865049,0.13446056,88880.0,88870.0,0.34245285]
[1769311865396,0.020736,88881.0,88870.0,0.34245285]
[1769311865725,0.01125074,88883.0,88870.0,0.34237285]
[1769311865893,0.01125125,88879.0,88863.0,0.7801938]
[1769311866132,0.06750754,88879.0,88863.0,1.12264665]
[1769311866283,0.05625711,88878.0,88863.0,0.34245285]
[1769311866484,0.01125163,88876.0,88863.0,0.34245285]
[1769311866706,0.05351659,88878.0,88863.0,0.34245285]
[1769311867189,0.05351659,88878.0,88849.0,0.18409505]
[1769311867190,0.13167374,88868.0,88849.0,1.12264665]
[1769311867392,0.00350216,88867.0,88849.0,1.12264665]
[1769311867769,0.03350216,88867.0,88849.0,0.7801938]
[1769311868012,0.03350216,88867.0,88850.0,0.34245285]
[1769311868293,0.03,88867.0,88850.0,0.34245285]
[1769311868433,0.03,88867.0,88847.0,0.00047598]
[1769311868434,0.03,88867.0,88860.0,0.7801938]
[1769311868639,0.03,88866.0,88848.0,0.01125517]
[1769311868878,0.03,88866.0,88849.0,0.00910919]
[1769311869053,0.03,88866.0,88847.0,0.02084047]
[1769311869415,0.03,88866.0,88851.0,0.34245285]
[1769311869738,0.03,88865.0,88852.0,0.00910888]
[1769311869936,0.00350216,88864.0,88852.0,0.00910888]
[1769311870143,0.02346765,88873.0,88847.0,0.00958565]
[1769311870357,0.13446056,88868.0,88847.0,0.02084095]
[1769311870552,0.1311226,88868.0,88850.0,0.7801938]
[1769311870777,0.00350216,88874.0,88854.0,0.7801938]
[1769311870988,0.00350216,88874.0,88855.0,0.7801938]
[1769311871226,0.00350216,88874.0,88856.0,0.34245285]
[1769311872492,0.00350216,88874.0,88857.0,0.79343553]
[1769311872664,0.00350216,88874.0,88858.0,0.35440536]
[1769311873101,0.03350216,88874.0,88858.0,0.35440536]
[1769311874055,0.13112325,88870.0,88858.0,0.35440536]
[1769311874259,0.1144295,88870.0,88858.0,0.35440536]
[1769311874495,0.11091713,88870.0,88858.0,0.35440536]
[1769311874686,0.09085767,88870.0,88851.0,0.35440536]
[1769311874886,0.00223761,88869.0,88851.0,0.35440536]
[1769311875065,0.00223761,88869.0,88851.0,0.79467759]
[1769311875244,0.00223761,88869.0,88852.0,0.35440536]
[1769311875425,0.00223761,88869.0,88853.0,0.36484513]
[1769311875635,0.00223761,88869.0,88853.0,0.35440536]
[1769311876029,0.14123064,88874.0,88854.0,0.79467759]
[1769311876233,0.03,88872.0,88855.0,0.35440536]
[1769311876432,0.03,88869.0,88849.0,0.01125505]
[1769311876690,0.14123064,88869.0,88851.0,0.35440536]
[1769311876841,0.14123064,88869.0,88853.0,0.35440536]
[1769311877036,0.03,88867.0,88853.0,0.35440536]
[1769311877260,0.14152634,88867.0,88855.0,0.35440536]
[1769311877502,0.10817697,88866.0,88855.0,0.35440536]
[1769311877655,0.08908367,88874.0,88857.0,0.35409912]
[1769311877856,0.0859453,88874.0,88858.0,0.79467759]
[1769311878058,0.13446056,88870.0,88861.0,0.35440536]
[1769311878307,0.12468694,88870.0,88861.0,0.35406671]
[1769311878471,0.03,88869.0,88861.0,0.35332269]
[1769311878678,0.01125163,88876.0,88861.0,0.3456624]
[1769311878873,0.01125175,88875.0,88861.0,0.33516537]
[1769311879077,0.14525389,88878.0,88861.0,0.33155283]
[1769311879283,0.13343956,88870.0,88849.0,0.01125505]
[1769311879480,0.13343956,88870.0,88848.0,0.35440536]
[1769311879698,0.13570211,88870.0,88850.0,0.35440536]
[1769311879931,0.13570211,88870.0,88852.0,0.35440536]
[1769311880142,0.05188576,88876.0,88854.0,0.79467759]
[1769311880260,0.05188576,88876.0,88855.0,0.35440536]
[1769311880261,0.03226255,88874.0,88855.0,0.35440536]
[1769311880458,0.03226255,88874.0,88855.0,0.79467759]
[1769311880666,0.03226255,88874.0,88856.0,0.35440536]